[Event "Titled Tuesday Blitz January 10 Late 2023"]
[White "Peatman, Carter"]
[Black "Osmonbekov, Talaibek"]
[WhiteFideId "2096480"]
[BlackFideId "2017253"]
[WhiteElo "1998"]
[BlackElo "2137"]
[Result "0-1"]
[Round "02"]
[TimeControl "180+2"]
[Date "2023.01.10"]
[WhiteClock "0:00:02"]
[BlackClock "0:00:07"]

1. d4 {[%clk 0:00:00]}  e6 {[%clk 0:00:00]} 2. Bf4 {[%clk 0:02:59]}  f5 {[%clk 0:02:58]} 3. e3 {[%clk 0:03:00]}  Nf6 {[%clk 0:02:57]} 4. Nf3 {[%clk 0:02:59]}  g6 {[%clk 0:02:55]} 5. h3 {[%clk 0:02:59]}  Bg7 {[%clk 0:02:54]} 6. c4 {[%clk 0:02:59]}  O-O {[%clk 0:02:55]} 7. Nc3 {[%clk 0:02:59]}  d6 {[%clk 0:02:55]} 8. Bh2 {[%clk 0:02:55]}  Qe7 {[%clk 0:02:56]} 9. Be2 {[%clk 0:02:55]}  Nc6 {[%clk 0:02:55]} 10. O-O {[%clk 0:02:56]}  Nd8 {[%clk 0:02:54]} 11. b4 {[%clk 0:02:56]}  Nf7 {[%clk 0:02:51]} 12. c5 {[%clk 0:02:54]}  e5 {[%clk 0:02:48]} 13. Rc1 {[%clk 0:02:53]}  e4 {[%clk 0:02:41]} 14. Nd2 {[%clk 0:02:46]}  d5 {[%clk 0:02:24]} 15. b5 {[%clk 0:02:45]}  g5 {[%clk 0:02:24]} 16. Qb3 {[%clk 0:02:31]}  Be6 {[%clk 0:02:11]} 17. a4 {[%clk 0:02:24]}  Bh6 {[%clk 0:02:08]} 18. Rfe1 {[%clk 0:02:19]}  f4 {[%clk 0:02:04]} 19. b6 {[%clk 0:02:11]}  axb6 {[%clk 0:02:02]} 20. cxb6 {[%clk 0:01:55]}  c6 {[%clk 0:01:51]} 21. Ra1 {[%clk 0:01:56]}  Kh8 {[%clk 0:01:52]} 22. a5 {[%clk 0:01:42]}  Rg8 {[%clk 0:01:38]} 23. a6 {[%clk 0:01:42]}  fxe3 {[%clk 0:01:30]} 24. fxe3 {[%clk 0:01:41]}  g4 {[%clk 0:01:25]} 25. Nf1 {[%clk 0:01:39]}  gxh3 {[%clk 0:01:25]} 26. g3 {[%clk 0:01:25]}  bxa6 {[%clk 0:01:21]} 27. Rxa6 {[%clk 0:01:25]}  Rxa6 {[%clk 0:01:10]} 28. Bxa6 {[%clk 0:01:14]}  Ng5 {[%clk 0:01:09]} 29. Be2 {[%clk 0:01:14]}  Bg4 {[%clk 0:01:04]} 30. b7 {[%clk 0:01:00]}  Rb8 {[%clk 0:00:52]} 31. Rb1 {[%clk 0:00:51]}  Bxe2 {[%clk 0:00:52]} 32. Nxe2 {[%clk 0:00:26]}  Nf3+ {[%clk 0:00:41]} 33. Kh1 {[%clk 0:00:27]}  Ng4 {[%clk 0:00:42]} 34. Bg1 {[%clk 0:00:27]}  Qf7 {[%clk 0:00:42]} 35. Nf4 {[%clk 0:00:28]}  Bxf4 {[%clk 0:00:20]} 36. exf4 {[%clk 0:00:27]}  Nxg1 {[%clk 0:00:17]} 37. Kxg1 {[%clk 0:00:27]}  Qg7 {[%clk 0:00:15]} 38. Nh2 {[%clk 0:00:27]}  Qxd4+ {[%clk 0:00:11]} 39. Kh1 {[%clk 0:00:24]}  Nf2+ {[%clk 0:00:10]} 40. Kg1 {[%clk 0:00:22]}  Nd3+ {[%clk 0:00:10]} 41. Kh1 {[%clk 0:00:21]}  Qf2 {[%clk 0:00:10]} 42. Rg1 {[%clk 0:00:18]}  Qxf4 {[%clk 0:00:10]} 43. Qc3+ {[%clk 0:00:05]}  Qe5 {[%clk 0:00:10]} 44. Qd2 {[%clk 0:00:05]}  Rxb7 {[%clk 0:00:09]} 45. Ng4 {[%clk 0:00:05]}  Qg7 {[%clk 0:00:07]} 46. Nf2 {[%clk 0:00:05]}  Rb2 {[%clk 0:00:06]} 47. Qe3 {[%clk 0:00:01]}  Nxf2+ {[%clk 0:00:06]} 48. Kh2 {[%clk 0:00:01]}  Ng4+ {[%clk 0:00:06]} 49. Kxh3 {[%clk 0:00:01]}  Nxe3 {[%clk 0:00:06]} 50. Rf1 {[%clk 0:00:02]}  Qh6# {[%clk 0:00:07]} 0-1


[Site "https://www.chess.com"]

[Event "Titled Tuesday Blitz January 10 Late 2023"]
[White "Kovacevic, Radmila"]
[Black "Novikov, Evgenij"]
[WhiteFideId "933171"]
[BlackFideId "4125380"]
[WhiteElo "2106"]
[BlackElo "2276"]
[Result "0-1"]
[Round "02"]
[TimeControl "180+2"]
[Date "2023.01.10"]
[WhiteClock "0:00:03"]
[BlackClock "0:00:06"]

1. e4 {[%clk 0:00:00]}  c6 {[%clk 0:00:00]} 2. d4 {[%clk 0:02:57]}  d5 {[%clk 0:02:58]} 3. e5 {[%clk 0:02:56]}  Bf5 {[%clk 0:02:58]} 4. Be3 {[%clk 0:02:56]}  e6 {[%clk 0:02:58]} 5. c3 {[%clk 0:02:56]}  Nd7 {[%clk 0:02:58]} 6. Nd2 {[%clk 0:02:56]}  Rc8 {[%clk 0:02:57]} 7. b4 {[%clk 0:02:49]}  Ne7 {[%clk 0:02:56]} 8. g4 {[%clk 0:02:49]}  Bg6 {[%clk 0:02:51]} 9. Bg2 {[%clk 0:02:47]}  h5 {[%clk 0:02:50]} 10. h3 {[%clk 0:02:42]}  hxg4 {[%clk 0:02:49]} 11. hxg4 {[%clk 0:02:42]}  Rxh1 {[%clk 0:02:49]} 12. Bxh1 {[%clk 0:02:43]}  b6 {[%clk 0:02:49]} 13. Ne2 {[%clk 0:02:43]}  c5 {[%clk 0:02:45]} 14. Nf4 {[%clk 0:02:42]}  Bh7 {[%clk 0:02:42]} 15. Qa4 {[%clk 0:02:36]}  cxd4 {[%clk 0:02:34]} 16. Bxd4 {[%clk 0:02:07]}  Nc6 {[%clk 0:02:22]} 17. Ne2 {[%clk 0:01:54]}  Bd3 {[%clk 0:02:18]} 18. Nf3 {[%clk 0:01:04]}  b5 {[%clk 0:01:56]} 19. Qd1 {[%clk 0:00:54]}  Be4 {[%clk 0:01:41]} 20. a4 {[%clk 0:00:51]}  Bxf3 {[%clk 0:01:40]} 21. Bxf3 {[%clk 0:00:29]}  Ncxe5 {[%clk 0:01:34]} 22. Bg2 {[%clk 0:00:28]}  a6 {[%clk 0:01:34]} 23. axb5 {[%clk 0:00:26]}  axb5 {[%clk 0:01:28]} 24. Ra5 {[%clk 0:00:25]}  Rb8 {[%clk 0:01:29]} 25. Qd2 {[%clk 0:00:24]}  Nc4 {[%clk 0:00:47]} 26. Qd3 {[%clk 0:00:19]}  Nxa5 {[%clk 0:00:46]} 27. bxa5 {[%clk 0:00:15]}  Qxa5 {[%clk 0:00:45]} 28. g5 {[%clk 0:00:16]}  g6 {[%clk 0:00:46]} 29. Qe3 {[%clk 0:00:15]}  Qa1+ {[%clk 0:00:44]} 30. Kd2 {[%clk 0:00:13]}  b4 {[%clk 0:00:42]} 31. Bxd5 {[%clk 0:00:14]}  bxc3+ {[%clk 0:00:41]} 32. Bxc3 {[%clk 0:00:13]}  Bb4 {[%clk 0:00:40]} 33. Bxe6 {[%clk 0:00:13]}  Bxc3+ {[%clk 0:00:36]} 34. Nxc3 {[%clk 0:00:12]}  Qb2+ {[%clk 0:00:34]} 35. Kd3 {[%clk 0:00:13]}  fxe6 {[%clk 0:00:32]} 36. Qxe6+ {[%clk 0:00:12]}  Kd8 {[%clk 0:00:25]} 37. Qg8+ {[%clk 0:00:13]}  Kc7 {[%clk 0:00:25]} 38. Qc4+ {[%clk 0:00:12]}  Kb7 {[%clk 0:00:25]} 39. Qd5+ {[%clk 0:00:12]}  Kc8 {[%clk 0:00:23]} 40. Qc4+ {[%clk 0:00:12]}  Kd8 {[%clk 0:00:19]} 41. Qg8+ {[%clk 0:00:09]}  Ke7 {[%clk 0:00:16]} 42. Qg7+ {[%clk 0:00:08]}  Kd6 {[%clk 0:00:15]} 43. Qxg6+ {[%clk 0:00:07]}  Kc7 {[%clk 0:00:11]} 44. Nd5+ {[%clk 0:00:07]}  Kb7 {[%clk 0:00:10]} 45. Qd6 {[%clk 0:00:07]}  Qb5+ {[%clk 0:00:10]} 46. Kd2 {[%clk 0:00:05]}  Qa5+ {[%clk 0:00:08]} 47. Kd1 {[%clk 0:00:04]}  Qa4+ {[%clk 0:00:05]} 48. Kd2 {[%clk 0:00:03]}  Qc6 {[%clk 0:00:04]} 49. Qb4+ {[%clk 0:00:03]}  Nb6 {[%clk 0:00:05]} 50. Ne7 {[%clk 0:00:03]}  Qd7+ {[%clk 0:00:06]} 0-1


[Site "https://www.chess.com"]

[Event "Titled Tuesday Blitz January 10 Late 2023"]
[White "Goncalves, Davi Sulzbacher"]
[Black "Michalski, Olaf"]
[WhiteFideId "2154510"]
[BlackFideId "1106740"]
[WhiteElo "2282"]
[BlackElo "2273"]
[Result "1-0"]
[Round "02"]
[TimeControl "180+2"]
[Date "2023.01.10"]
[WhiteClock "0:01:07"]
[BlackClock "0:00:01"]

1. Nf3 {[%clk 0:00:00]}  d6 {[%clk 0:00:00]} 2. d4 {[%clk 0:03:00]}  g6 {[%clk 0:02:58]} 3. e4 {[%clk 0:03:01]}  Bg7 {[%clk 0:02:54]} 4. Be2 {[%clk 0:02:58]}  Bg4 {[%clk 0:02:54]} 5. h3 {[%clk 0:02:57]}  Bxf3 {[%clk 0:02:53]} 6. Bxf3 {[%clk 0:02:53]}  Nd7 {[%clk 0:02:52]} 7. Be3 {[%clk 0:02:54]}  e5 {[%clk 0:02:50]} 8. d5 {[%clk 0:02:53]}  f5 {[%clk 0:02:50]} 9. c4 {[%clk 0:02:48]}  Ngf6 {[%clk 0:02:45]} 10. Nc3 {[%clk 0:02:45]}  O-O {[%clk 0:02:43]} 11. Qc2 {[%clk 0:02:45]}  Nc5 {[%clk 0:02:13]} 12. Bxc5 {[%clk 0:02:41]}  fxe4 {[%clk 0:01:27]} 13. Nxe4 {[%clk 0:02:29]}  Nxe4 {[%clk 0:01:15]} 14. Bxe4 {[%clk 0:02:26]}  dxc5 {[%clk 0:01:10]} 15. h4 {[%clk 0:02:27]}  Qd6 {[%clk 0:01:10]} 16. h5 {[%clk 0:02:24]}  Rf6 {[%clk 0:00:27]} 17. f3 {[%clk 0:02:23]}  Raf8 {[%clk 0:00:26]} 18. g4 {[%clk 0:02:00]}  Rxf3 {[%clk 0:00:19]} 19. Bxf3 {[%clk 0:01:52]}  Rxf3 {[%clk 0:00:19]} 20. O-O-O {[%clk 0:01:46]}  Bh6+ {[%clk 0:00:20]} 21. Kb1 {[%clk 0:01:43]}  Bf4 {[%clk 0:00:17]} 22. hxg6 {[%clk 0:01:43]}  hxg6 {[%clk 0:00:17]} 23. Qa4 {[%clk 0:01:25]}  Kg7 {[%clk 0:00:17]} 24. Qe8 {[%clk 0:01:13]}  Qf8 {[%clk 0:00:01]} 25. Rh7+ {[%clk 0:01:07]} 1-0


[Site "https://www.chess.com"]

[Event "Titled Tuesday Blitz January 10 Late 2023"]
[White "Kho, Darrell"]
[Black "Arencibia Monduy, Antonio"]
[WhiteFideId "1019317"]
[BlackFideId "3507939"]
[WhiteElo "2075"]
[BlackElo "2122"]
[Result "0-1"]
[Round "02"]
[TimeControl "180+2"]
[Date "2023.01.10"]
[WhiteClock "0:00:47"]
[BlackClock "0:01:04"]

1. e4 {[%clk 0:00:00]}  d6 {[%clk 0:00:00]} 2. d4 {[%clk 0:03:00]}  c6 {[%clk 0:02:59]} 3. Nc3 {[%clk 0:03:00]}  g6 {[%clk 0:02:59]} 4. f4 {[%clk 0:02:51]}  Bg7 {[%clk 0:02:59]} 5. Nf3 {[%clk 0:02:50]}  Qc7 {[%clk 0:02:59]} 6. Be3 {[%clk 0:02:48]}  Bg4 {[%clk 0:02:59]} 7. h3 {[%clk 0:02:41]}  Bxf3 {[%clk 0:02:56]} 8. Qxf3 {[%clk 0:02:39]}  Nd7 {[%clk 0:02:56]} 9. Bd3 {[%clk 0:02:39]}  e6 {[%clk 0:02:53]} 10. f5 {[%clk 0:02:26]}  exf5 {[%clk 0:02:46]} 11. exf5 {[%clk 0:02:17]}  O-O-O {[%clk 0:02:17]} 12. O-O-O {[%clk 0:02:17]}  Ngf6 {[%clk 0:02:17]} 13. g4 {[%clk 0:02:06]}  Nb6 {[%clk 0:02:16]} 14. g5 {[%clk 0:02:04]}  Nfd5 {[%clk 0:02:12]} 15. Nxd5 {[%clk 0:02:00]}  Nxd5 {[%clk 0:02:12]} 16. f6 {[%clk 0:01:49]}  Bf8 {[%clk 0:02:12]} 17. c3 {[%clk 0:01:50]}  Nxe3 {[%clk 0:02:10]} 18. Qxe3 {[%clk 0:01:32]}  d5 {[%clk 0:02:08]} 19. h4 {[%clk 0:01:32]}  Bd6 {[%clk 0:02:09]} 20. Kb1 {[%clk 0:01:23]}  Rhe8 {[%clk 0:02:09]} 21. Qf3 {[%clk 0:01:22]}  Re6 {[%clk 0:02:04]} 22. h5 {[%clk 0:01:21]}  Rde8 {[%clk 0:01:45]} 23. hxg6 {[%clk 0:01:20]}  hxg6 {[%clk 0:01:39]} 24. Rh7 {[%clk 0:01:18]}  Re3 {[%clk 0:01:40]} 25. Qg4+ {[%clk 0:01:11]}  Kb8 {[%clk 0:01:37]} 26. Bxg6 {[%clk 0:01:08]}  Qb6 {[%clk 0:01:28]} 27. Bxf7 {[%clk 0:01:08]}  Re2 {[%clk 0:01:15]} 28. b3 {[%clk 0:00:55]}  Qa5 {[%clk 0:01:08]} 29. a4 {[%clk 0:00:47]}  Qxc3 {[%clk 0:01:04]} 0-1


[Site "https://www.chess.com"]

[Event "Titled Tuesday Blitz January 10 Late 2023"]
[White "Tsukerman, Julia"]
[Black "Arenas, David"]
[WhiteFideId "2621649"]
[BlackFideId "4403177"]
[WhiteElo "1741"]
[BlackElo "2426"]
[Result "0-1"]
[Round "02"]
[TimeControl "180+2"]
[Date "2023.01.10"]
[WhiteClock "0:00:07"]
[BlackClock "0:01:30"]

1. e4 {[%clk 0:00:00]}  c5 {[%clk 0:00:00]} 2. Nf3 {[%clk 0:03:00]}  d6 {[%clk 0:02:59]} 3. d4 {[%clk 0:02:57]}  Nf6 {[%clk 0:02:59]} 4. Nc3 {[%clk 0:02:58]}  cxd4 {[%clk 0:02:57]} 5. Nxd4 {[%clk 0:02:51]}  g6 {[%clk 0:02:57]} 6. f4 {[%clk 0:02:50]}  Nc6 {[%clk 0:02:58]} 7. Nf3 {[%clk 0:02:48]}  Bg7 {[%clk 0:02:57]} 8. Bd3 {[%clk 0:02:47]}  O-O {[%clk 0:02:56]} 9. O-O {[%clk 0:02:44]}  e5 {[%clk 0:02:55]} 10. fxe5 {[%clk 0:02:41]}  dxe5 {[%clk 0:02:43]} 11. Kh1 {[%clk 0:02:27]}  h6 {[%clk 0:02:37]} 12. Be3 {[%clk 0:02:18]}  Be6 {[%clk 0:02:34]} 13. Qe2 {[%clk 0:02:10]}  a6 {[%clk 0:02:32]} 14. Rad1 {[%clk 0:01:55]}  Qc7 {[%clk 0:02:28]} 15. Qd2 {[%clk 0:01:54]}  Ng4 {[%clk 0:02:29]} 16. Bg1 {[%clk 0:01:46]}  b5 {[%clk 0:02:26]} 17. h3 {[%clk 0:01:39]}  Nf6 {[%clk 0:02:25]} 18. Be3 {[%clk 0:01:31]}  Kh7 {[%clk 0:02:24]} 19. a3 {[%clk 0:01:16]}  Nh5 {[%clk 0:02:23]} 20. Qf2 {[%clk 0:01:03]}  Nd4 {[%clk 0:02:19]} 21. Ne2 {[%clk 0:00:46]}  Rad8 {[%clk 0:02:09]} 22. Ng3 {[%clk 0:00:38]}  Nf4 {[%clk 0:02:05]} 23. Nxd4 {[%clk 0:00:23]}  Nxd3 {[%clk 0:01:51]} 24. Rxd3 {[%clk 0:00:15]}  exd4 {[%clk 0:01:50]} 25. Bf4 {[%clk 0:00:15]}  Qc8 {[%clk 0:01:49]} 26. Kh2 {[%clk 0:00:11]}  Bc4 {[%clk 0:01:43]} 27. Rfd1 {[%clk 0:00:09]}  Bxd3 {[%clk 0:01:43]} 28. Rxd3 {[%clk 0:00:06]}  Qe6 {[%clk 0:01:43]} 29. b3 {[%clk 0:00:07]}  Be5 {[%clk 0:01:30]} 0-1


[Site "https://www.chess.com"]

[Event "Titled Tuesday Blitz January 10 Late 2023"]
[White "Rengifo Blancas, Renzo Jhonathan"]
[Black "ritanovikova"]
[WhiteFideId "3807185"]
[WhiteElo "2131"]
[BlackElo "2115"]
[Result "0-1"]
[Round "02"]
[TimeControl "180+2"]
[Date "2023.01.10"]
[WhiteClock "0:01:13"]
[BlackClock "0:00:54"]

1. e4 {[%clk 0:00:00]}  d5 {[%clk 0:00:00]} 2. exd5 {[%clk 0:03:00]}  Qxd5 {[%clk 0:02:58]} 3. Nc3 {[%clk 0:02:56]}  Qd6 {[%clk 0:02:58]} 4. Bc4 {[%clk 0:02:56]}  Nf6 {[%clk 0:02:57]} 5. d4 {[%clk 0:02:57]}  a6 {[%clk 0:02:57]} 6. Nf3 {[%clk 0:02:57]}  Bg4 {[%clk 0:02:56]} 7. h3 {[%clk 0:02:57]}  Bh5 {[%clk 0:02:56]} 8. g4 {[%clk 0:02:57]}  Bg6 {[%clk 0:02:54]} 9. Ne5 {[%clk 0:02:57]}  Nc6 {[%clk 0:02:54]} 10. Bf4 {[%clk 0:02:58]}  Nxe5 {[%clk 0:02:50]} 11. dxe5 {[%clk 0:02:53]}  Qxd1+ {[%clk 0:02:48]} 12. Rxd1 {[%clk 0:02:50]}  Ne4 {[%clk 0:02:47]} 13. Nd5 {[%clk 0:02:49]}  O-O-O {[%clk 0:02:42]} 14. e6 {[%clk 0:02:49]}  Nd6 {[%clk 0:02:39]} 15. Bb3 {[%clk 0:02:44]}  Be4 {[%clk 0:02:29]} 16. O-O {[%clk 0:02:31]}  h5 {[%clk 0:01:59]} 17. Ne3 {[%clk 0:02:25]}  hxg4 {[%clk 0:01:56]} 18. exf7 {[%clk 0:02:24]}  Rxh3 {[%clk 0:01:52]} 19. Ng2 {[%clk 0:02:22]}  Kb8 {[%clk 0:01:44]} 20. Be6 {[%clk 0:02:22]}  Bf3 {[%clk 0:01:18]} 21. Rd3 {[%clk 0:02:10]}  g5 {[%clk 0:01:17]} 22. Bxg5 {[%clk 0:02:08]}  Bg7 {[%clk 0:01:12]} 23. Bxe7 {[%clk 0:02:07]}  Rdh8 {[%clk 0:01:11]} 24. f8=R+ {[%clk 0:02:03]}  Bxf8 {[%clk 0:01:11]} 25. Bh4 {[%clk 0:01:14]}  R8xh4 {[%clk 0:01:03]} 26. Nxh4 {[%clk 0:01:13]}  Rh1# {[%clk 0:00:54]} 0-1


[Site "https://www.chess.com"]

[Event "Titled Tuesday Blitz January 10 Late 2023"]
[White "Savic, Miroslav"]
[Black "Gracia Alvarez, Gerardo Antonio"]
[WhiteFideId "14508494"]
[BlackFideId "5109124"]
[WhiteElo "2167"]
[BlackElo "2238"]
[Result "0-1"]
[Round "02"]
[TimeControl "180+2"]
[Date "2023.01.10"]
[WhiteClock "0:00:05"]
[BlackClock "0:00:06"]

1. Nf3 {[%clk 0:00:00]}  d5 {[%clk 0:00:00]} 2. d4 {[%clk 0:02:59]}  c5 {[%clk 0:02:58]} 3. c4 {[%clk 0:02:58]}  e6 {[%clk 0:02:57]} 4. Nc3 {[%clk 0:02:58]}  cxd4 {[%clk 0:02:56]} 5. Nxd4 {[%clk 0:02:55]}  e5 {[%clk 0:02:43]} 6. Nf3 {[%clk 0:02:49]}  d4 {[%clk 0:02:41]} 7. Nd5 {[%clk 0:02:48]}  Nc6 {[%clk 0:02:38]} 8. e3 {[%clk 0:02:45]}  Nf6 {[%clk 0:02:32]} 9. exd4 {[%clk 0:02:30]}  Nxd5 {[%clk 0:02:17]} 10. cxd5 {[%clk 0:02:22]}  Qxd5 {[%clk 0:02:13]} 11. dxe5 {[%clk 0:02:16]}  Bb4+ {[%clk 0:02:14]} 12. Bd2 {[%clk 0:02:10]}  Qe4+ {[%clk 0:01:59]} 13. Be2 {[%clk 0:02:07]}  O-O {[%clk 0:01:44]} 14. Bxb4 {[%clk 0:01:46]}  Qxb4+ {[%clk 0:01:43]} 15. Qd2 {[%clk 0:01:40]}  Qxd2+ {[%clk 0:01:39]} 16. Kxd2 {[%clk 0:01:40]}  Rd8+ {[%clk 0:01:32]} 17. Ke3 {[%clk 0:01:37]}  Bg4 {[%clk 0:01:31]} 18. Rhd1 {[%clk 0:01:30]}  Bxf3 {[%clk 0:01:12]} 19. Bxf3 {[%clk 0:01:20]}  Nxe5 {[%clk 0:00:56]} 20. Bxb7 {[%clk 0:01:17]}  Rab8 {[%clk 0:00:56]} 21. Rxd8+ {[%clk 0:01:12]}  Rxd8 {[%clk 0:00:53]} 22. Rc1 {[%clk 0:01:07]}  g6 {[%clk 0:00:52]} 23. Rc8 {[%clk 0:00:52]}  Rxc8 {[%clk 0:00:45]} 24. Bxc8 {[%clk 0:00:50]}  Nc4+ {[%clk 0:00:43]} 25. Kd4 {[%clk 0:00:51]}  Nxb2 {[%clk 0:00:43]} 26. Bd7 {[%clk 0:00:43]}  Kf8 {[%clk 0:00:44]} 27. Bb5 {[%clk 0:00:38]}  Ke7 {[%clk 0:00:39]} 28. f3 {[%clk 0:00:38]}  Kd6 {[%clk 0:00:30]} 29. Kc3 {[%clk 0:00:37]}  Nd1+ {[%clk 0:00:27]} 30. Kd2 {[%clk 0:00:37]}  Nb2 {[%clk 0:00:27]} 31. Kc2 {[%clk 0:00:34]}  Kc5 {[%clk 0:00:11]} 32. a4 {[%clk 0:00:32]}  Nc4 {[%clk 0:00:11]} 33. Kd3 {[%clk 0:00:19]}  Nd6 {[%clk 0:00:11]} 34. Bd7 {[%clk 0:00:08]}  Kb4 {[%clk 0:00:11]} 35. Kd4 {[%clk 0:00:08]}  Nc4 {[%clk 0:00:11]} 36. Be8 {[%clk 0:00:07]}  f6 {[%clk 0:00:07]} 37. Bf7 {[%clk 0:00:05]}  Nb6 {[%clk 0:00:06]} 0-1


[Site "https://www.chess.com"]

[Event "Titled Tuesday Blitz January 10 Late 2023"]
[White "Forgacs, Attila Jr."]
[Black "Dias, Joao Batista"]
[WhiteFideId "773654"]
[BlackFideId "2108240"]
[WhiteElo "2264"]
[BlackElo "1796"]
[Result "1/2-1/2"]
[Round "02"]
[TimeControl "180+2"]
[Date "2023.01.10"]
[WhiteClock "0:00:34"]
[BlackClock "0:01:49"]

1. e4 {[%clk 0:00:00]}  e5 {[%clk 0:00:00]} 2. Nf3 {[%clk 0:03:00]}  Nc6 {[%clk 0:02:56]} 3. Bb5 {[%clk 0:03:00]}  Nd4 {[%clk 0:02:55]} 4. Nxd4 {[%clk 0:03:01]}  exd4 {[%clk 0:02:54]} 5. O-O {[%clk 0:03:01]}  c6 {[%clk 0:02:55]} 6. Ba4 {[%clk 0:03:01]}  b5 {[%clk 0:02:56]} 7. Bb3 {[%clk 0:03:01]}  a5 {[%clk 0:02:55]} 8. a4 {[%clk 0:03:01]}  b4 {[%clk 0:02:56]} 9. d3 {[%clk 0:03:01]}  d6 {[%clk 0:02:54]} 10. f4 {[%clk 0:03:00]}  Be6 {[%clk 0:02:53]} 11. Bxe6 {[%clk 0:02:59]}  fxe6 {[%clk 0:02:51]} 12. e5 {[%clk 0:02:56]}  Ne7 {[%clk 0:02:52]} 13. Nd2 {[%clk 0:02:53]}  Nf5 {[%clk 0:02:42]} 14. Nf3 {[%clk 0:02:45]}  d5 {[%clk 0:02:42]} 15. g4 {[%clk 0:02:25]}  Ne3 {[%clk 0:02:41]} 16. Bxe3 {[%clk 0:02:16]}  dxe3 {[%clk 0:02:40]} 17. d4 {[%clk 0:02:16]}  c5 {[%clk 0:02:40]} 18. Qe2 {[%clk 0:02:14]}  cxd4 {[%clk 0:02:35]} 19. Nxd4 {[%clk 0:02:05]}  Qb6 {[%clk 0:02:34]} 20. Qxe3 {[%clk 0:02:05]}  Bc5 {[%clk 0:02:33]} 21. Rad1 {[%clk 0:01:50]}  O-O {[%clk 0:02:32]} 22. Kh1 {[%clk 0:01:49]}  g6 {[%clk 0:02:32]} 23. f5 {[%clk 0:01:46]}  Bxd4 {[%clk 0:02:14]} 24. Qxd4 {[%clk 0:01:24]}  Qxd4 {[%clk 0:02:08]} 25. Rxd4 {[%clk 0:01:10]}  gxf5 {[%clk 0:02:08]} 26. gxf5 {[%clk 0:01:11]}  Rxf5 {[%clk 0:02:09]} 27. Rxf5 {[%clk 0:01:11]}  exf5 {[%clk 0:02:08]} 28. Rxd5 {[%clk 0:01:11]}  Kf7 {[%clk 0:02:09]} 29. Kg2 {[%clk 0:01:11]}  Ke6 {[%clk 0:02:09]} 30. Rb5 {[%clk 0:01:07]}  Rc8 {[%clk 0:02:09]} 31. Rxa5 {[%clk 0:01:07]}  Rxc2+ {[%clk 0:02:09]} 32. Kg3 {[%clk 0:00:58]}  Rxb2 {[%clk 0:02:08]} 33. Rb5 {[%clk 0:00:57]}  b3 {[%clk 0:02:09]} 34. h4 {[%clk 0:00:55]}  h5 {[%clk 0:02:00]} 35. a5 {[%clk 0:00:54]}  Rb1 {[%clk 0:01:59]} 36. a6 {[%clk 0:00:53]}  b2 {[%clk 0:01:57]} 37. Kg2 {[%clk 0:00:47]}  Ra1 {[%clk 0:01:56]} 38. Rxb2 {[%clk 0:00:44]}  Rxa6 {[%clk 0:01:55]} 39. Rb5 {[%clk 0:00:44]}  Ra3 {[%clk 0:01:56]} 40. Rb6+ {[%clk 0:00:42]}  Kxe5 {[%clk 0:01:54]} 41. Rh6 {[%clk 0:00:37]}  Ra2+ {[%clk 0:01:54]} 42. Kf3 {[%clk 0:00:38]}  Ra3+ {[%clk 0:01:49]} 43. Kg2 {[%clk 0:00:35]}  Ra2+ {[%clk 0:01:49]} 44. Kf3 {[%clk 0:00:34]}  Ra3+ {[%clk 0:01:49]} 45. Kg2 {[%clk 0:00:34]} 1/2-1/2


[Site "https://www.chess.com"]

[Event "Titled Tuesday Blitz January 10 Late 2023"]
[White "Haszon, David"]
[Black "Arbunic Castro, Giovanna"]
[WhiteFideId "733610"]
[BlackFideId "3400549"]
[WhiteElo "2264"]
[BlackElo "1930"]
[Result "1-0"]
[Round "02"]
[TimeControl "180+2"]
[Date "2023.01.10"]
[WhiteClock "0:01:56"]
[BlackClock "0:02:01"]

1. d4 {[%clk 0:00:00]}  Nf6 {[%clk 0:00:00]} 2. Bf4 {[%clk 0:03:00]}  g6 {[%clk 0:02:53]} 3. Nc3 {[%clk 0:03:01]}  Bg7 {[%clk 0:02:52]} 4. Qd2 {[%clk 0:03:00]}  d6 {[%clk 0:02:52]} 5. h4 {[%clk 0:03:00]}  h5 {[%clk 0:02:51]} 6. O-O-O {[%clk 0:03:00]}  Nbd7 {[%clk 0:02:49]} 7. e4 {[%clk 0:02:59]}  c5 {[%clk 0:02:46]} 8. dxc5 {[%clk 0:02:57]}  Nxc5 {[%clk 0:02:44]} 9. e5 {[%clk 0:02:48]}  Nfe4 {[%clk 0:02:42]} 10. Nxe4 {[%clk 0:02:45]}  Nxe4 {[%clk 0:02:41]} 11. Qe3 {[%clk 0:02:42]}  d5 {[%clk 0:02:40]} 12. f3 {[%clk 0:02:11]}  Qa5 {[%clk 0:02:33]} 13. fxe4 {[%clk 0:02:07]}  Qxa2 {[%clk 0:02:19]} 14. Bb5+ {[%clk 0:02:03]}  Kf8 {[%clk 0:02:18]} 15. Qa3 {[%clk 0:01:58]}  Qxa3 {[%clk 0:02:16]} 16. bxa3 {[%clk 0:01:55]}  dxe4 {[%clk 0:02:01]} 17. Rd8# {[%clk 0:01:56]} 1-0


[Site "https://www.chess.com"]

[Event "Titled Tuesday Blitz January 10 Late 2023"]
[White "Vargas, Mauricio"]
[Black "Boder, Jan"]
[WhiteFideId "4404572"]
[BlackFideId "16243226"]
[WhiteElo "2035"]
[BlackElo "2294"]
[Result "0-1"]
[Round "02"]
[TimeControl "180+2"]
[Date "2023.01.10"]
[WhiteClock "0:00:24"]
[BlackClock "0:01:26"]

1. e4 {[%clk 0:00:00]}  e5 {[%clk 0:00:00]} 2. Nf3 {[%clk 0:02:39]}  Nc6 {[%clk 0:02:59]} 3. d4 {[%clk 0:02:36]}  exd4 {[%clk 0:02:59]} 4. Bc4 {[%clk 0:02:37]}  Nf6 {[%clk 0:02:58]} 5. e5 {[%clk 0:02:38]}  d5 {[%clk 0:02:51]} 6. O-O {[%clk 0:02:37]}  dxc4 {[%clk 0:02:50]} 7. exf6 {[%clk 0:02:34]}  Be6 {[%clk 0:02:48]} 8. Re1 {[%clk 0:02:33]}  gxf6 {[%clk 0:02:44]} 9. Na3 {[%clk 0:02:31]}  Bxa3 {[%clk 0:02:28]} 10. bxa3 {[%clk 0:02:19]}  Qd5 {[%clk 0:02:26]} 11. Bb2 {[%clk 0:02:17]}  O-O-O {[%clk 0:02:25]} 12. c3 {[%clk 0:02:04]}  d3 {[%clk 0:02:20]} 13. Nd4 {[%clk 0:01:58]}  Nxd4 {[%clk 0:02:18]} 14. cxd4 {[%clk 0:01:51]}  Rhg8 {[%clk 0:02:16]} 15. f3 {[%clk 0:01:52]}  Rg5 {[%clk 0:02:17]} 16. Rf1 {[%clk 0:01:43]}  Rdg8 {[%clk 0:02:08]} 17. Rf2 {[%clk 0:01:36]}  h5 {[%clk 0:02:08]} 18. h4 {[%clk 0:01:33]}  Rg3 {[%clk 0:02:03]} 19. Bc3 {[%clk 0:01:27]}  Bh3 {[%clk 0:02:02]} 20. Qd2 {[%clk 0:01:20]}  Rxg2+ {[%clk 0:01:54]} 21. Rxg2 {[%clk 0:01:15]}  Rxg2+ {[%clk 0:01:52]} 22. Qxg2 {[%clk 0:01:13]}  Bxg2 {[%clk 0:01:53]} 23. Kxg2 {[%clk 0:01:11]}  Kd7 {[%clk 0:01:50]} 24. Rb1 {[%clk 0:01:12]}  b6 {[%clk 0:01:33]} 25. Rb2 {[%clk 0:01:02]}  a5 {[%clk 0:01:33]} 26. Rf2 {[%clk 0:00:59]}  Qd6 {[%clk 0:01:32]} 27. f4 {[%clk 0:00:51]}  Qxa3 {[%clk 0:01:27]} 28. Ba1 {[%clk 0:00:47]}  Qc1 {[%clk 0:01:27]} 29. Rf1 {[%clk 0:00:39]}  d2 {[%clk 0:01:25]} 30. d5 {[%clk 0:00:36]}  Qxf1+ {[%clk 0:01:25]} 31. Kxf1 {[%clk 0:00:27]}  d1=Q+ {[%clk 0:01:23]} 32. Kf2 {[%clk 0:00:25]}  Qxa1 {[%clk 0:01:24]} 33. a4 {[%clk 0:00:25]}  c3 {[%clk 0:01:25]} 34. d6 {[%clk 0:00:24]}  c2 {[%clk 0:01:25]} 35. dxc7 {[%clk 0:00:23]}  Kxc7 {[%clk 0:01:26]} 36. Kf3 {[%clk 0:00:24]}  c1=Q {[%clk 0:01:27]} 37. Ke4 {[%clk 0:00:23]}  Qc2+ {[%clk 0:01:27]} 38. Kd5 {[%clk 0:00:24]}  Qad1# {[%clk 0:01:26]} 0-1


[Site "https://www.chess.com"]